bitfinex/quotes_ETHUSD_20250605
["timestamp","ask_amount","ask_price","bid_price","bid_amount"]
[1749150089319,6.434,2578.7,2578.6,3.87807337]
[1749150089920,6.434,2578.7,2578.5,3.87812865]
[1749150091921,0.806,2578.5,2578.2,3.87865244]
[1749150092152,0.806,2578.5,2577.8,3.87922273]
[1749150092356,0.806,2578.5,2578.2,3.87855335]
[1749150092722,0.806,2578.5,2578.2,16.0]
[1749150093070,0.806,2578.5,2577.5,0.55]
[1749150093071,4.68434159,2578.5,2577.7,4.07813218]
[1749150093250,3.8788109,2578.2,2577.7,3.87933431]
[1749150093452,6.434,2578.1,2577.9,3.87911367]
[1749150094179,6.434,2578.1,2577.8,3.87915778]
[1749150094390,6.434,2578.1,2577.9,3.87906198]
[1749150094572,6.434,2578.1,2578.0,3.87897595]
[1749150094778,3.87813114,2578.6,2578.4,3.87823105]
[1749150094779,2.5044,2578.6,2578.4,3.87823105]
[1749150094954,6.434,2578.5,2578.4,3.87830984]
[1749150095551,1.702,2578.6,2578.5,3.87822377]
[1749150095767,8.136,2578.6,2578.5,3.87822377]
[1749150095947,8.136,2578.6,2578.0,3.87896981]
[1749150096150,0.8027,2578.5,2578.1,16.0]
[1749150096348,0.8027,2578.5,2578.2,3.87867356]
[1749150097853,4.68094985,2578.5,2578.1,19.87877577]
[1749150098165,3.87859569,2578.3,2577.8,3.87921376]
[1749150098475,7.29166111,2578.2,2577.8,3.87921376]
[1749150098679,6.434,2578.2,2577.9,3.87901124]
[1749150098840,1.702,2578.3,2578.2,3.87861109]
[1749150099040,8.136,2578.3,2578.2,3.87861109]
[1749150099242,8.136,2578.3,2577.5,25.7660724]
[1749150099243,8.136,2578.3,2577.9,3.87906833]
[1749150099439,8.88446618,2578.3,2577.9,3.87910905]
[1749150100064,8.88446618,2578.3,2578.0,3.87896478]
[1749150100269,8.88446618,2578.3,2577.9,3.8790044]
[1749150100859,8.88446618,2578.3,2578.0,3.87897368]
[1749150101164,8.88446618,2578.3,2577.9,3.87905455]
[1749150101894,8.88446618,2578.3,2578.0,3.87892907]
[1749150102093,8.88446618,2578.3,2577.9,3.87904373]
[1749150102597,0.8195,2578.4,2577.8,16.38563911]
[1749150102797,2.5205,2578.4,2578.3,3.8785246]
[1749150102997,8.9555,2578.4,2578.2,3.87858521]
[1749150103213,2.5205,2578.4,2578.2,3.87858521]
[1749150103497,6.435,2578.3,2578.2,3.87858521]
[1749150103659,6.435,2578.3,2578.1,3.87870786]
[1749150103861,6.435,2578.3,2578.2,3.87867504]
[1749150105280,6.434,2578.3,2578.2,3.87867504]
[1749150107507,2.5205,2578.4,2578.2,3.87867504]
[1749150107667,2.5205,2578.4,2578.3,3.8785246]
[1749150107866,1.701,2578.4,2578.3,3.8785246]
[1749150108097,0.7718,2578.7,2578.6,3.87807337]
[1749150108379,0.02,2578.9,2578.8,3.8777726]
[1749150108579,6.454,2578.9,2578.8,3.8777726]
[1749150108919,3.876286,2579.8,2579.7,3.87636597]
[1749150108920,0.7718,2579.8,2579.7,3.87636597]
[1749150109117,0.7718,2579.8,2579.6,3.87650013]
[1749150109320,0.7718,2579.8,2579.2,19.87709365]
[1749150109617,6.434,2579.7,2579.2,1.98770937]
[1749150109819,6.434,2579.7,2579.5,3.87665329]
[1749150110690,6.434,2579.6,2579.5,3.87665329]
[1749150111317,0.7718,2579.8,2579.7,3.87641973]
[1749150111475,6.433,2579.8,2579.4,3.87672847]
[1749150111678,6.433,2579.8,2579.5,3.87672029]
[1749150111893,7.54307856,2579.8,2579.5,3.87672029]
[1749150112297,7.54307856,2579.8,2579.4,3.87678653]
[1749150112641,7.54307856,2579.8,2579.5,3.87671206]
[1749150113117,7.54307856,2579.8,2579.4,3.87678795]
[1749150113319,7.54307856,2579.8,2579.5,3.87668959]
[1749150114301,7.54307856,2579.8,2579.4,3.87680021]
[1749150114693,11.419427,2579.8,2579.3,4.26308044]
[1749150115023,3.87687059,2579.4,2578.9,3.877546]
[1749150115221,6.433,2579.3,2578.9,0.38120425]
[1749150115423,6.433,2579.3,2579.1,3.87731812]
[1749150115601,6.433,2579.3,2579.2,3.87717121]
[1749150115923,6.432,2579.3,2579.2,3.87717121]
[1749150116891,0.817,2579.6,2579.4,3.87680813]
[1749150117205,6.432,2579.5,2579.4,3.87680813]
[1749150119117,6.432,2579.5,2579.2,3.87710068]
[1749150119496,6.432,2579.5,2579.3,3.87700422]
[1749150120404,6.432,2579.5,2579.0,3.87745476]
[1749150120609,6.432,2579.5,2579.2,3.87709723]
[1749150120813,6.432,2579.5,2579.3,3.87696587]
[1749150120989,6.432,2579.5,2579.1,3.87723814]
[1749150121190,6.432,2579.5,2578.6,3.87799787]
[1749150121191,3.87733253,2579.1,2578.6,3.87799787]
[1749150121437,8.9652,2579.0,2578.2,3.87857152]
[1749150121640,8.9652,2579.0,2577.5,3.87972841]
[1749150121641,0.8322,2578.7,2577.5,3.87972841]
[1749150121823,6.432,2578.6,2578.2,3.87863903]
[1749150122020,3.87844139,2578.4,2577.9,3.87906062]
[1749150122189,3.87844139,2578.4,2577.3,9.7660724]
[1749150122190,0.7709,2578.3,2577.3,3.88002948]
[1749150122393,0.7709,2578.3,2578.1,3.87880128]
[1749150122823,0.7709,2578.3,2578.2,3.87867504]
[1749150123006,6.432,2578.3,2578.2,3.87867504]
[1749150123213,0.7995,2578.7,2578.5,3.87819921]
[1749150123414,0.7995,2578.7,2578.6,3.87807337]
[1749150123626,2.5005,2578.9,2578.7,3.87784778]
[1749150123832,6.432,2578.8,2578.7,3.87784778]
[1749150124255,1.701,2578.9,2578.8,3.8777726]
[1749150124532,5.57772494,2579.5,2579.0,3.87739042]
[1749150124730,7.07148249,2579.4,2579.0,3.87739042]
[1749150125515,7.07148249,2579.4,2578.5,29.64425211]
[1749150125719,0.7907,2579.3,2577.6,0.33380948]
[1749150125921,3.87759801,2579.0,2578.4,19.87827696]
[1749150126139,8.9237,2578.9,2578.4,3.87833439]
[1749150126344,8.9237,2578.9,2578.6,3.87799839]
[1749150126753,8.9237,2578.9,2578.5,3.8782082]
[1749150126931,10.14871168,2578.9,2578.5,3.8782082]
[1749150127545,10.14871168,2578.9,2578.2,16.0]
[1749150127866,8.9237,2578.9,2578.5,3.87815481]
[1749150128165,8.9237,2578.9,2578.4,16.38242548]
[1749150128462,8.9237,2578.9,2578.5,3.87815054]
[1749150128630,12.8013362,2578.9,2578.4,3.87829051]
[1749150128830,8.133,2578.8,2578.6,3.877978]
[1749150129262,8.133,2578.8,2577.9,9.7660724]
[1749150129263,8.133,2578.8,2578.0,16.0]
[1749150129420,0.7956,2578.6,2577.8,0.55]
[1749150129616,0.7956,2578.6,2578.0,0.55]
[1749150130049,8.9286,2578.8,2578.5,3.878107]
[1749150130269,8.9286,2578.8,2578.6,3.87794932]
[1749150130922,2.4966,2578.8,2578.6,3.87794932]
[1749150131153,6.432,2578.7,2578.6,3.87794932]
[1749150131717,6.432,2578.7,2578.5,3.87813824]
[1749150131950,6.432,2578.7,2578.6,3.87807337]
[1749150132538,6.432,2578.7,2578.5,3.87817335]
[1749150132742,6.432,2578.7,2578.6,3.87807337]
[1749150132954,1.701,2578.8,2578.7,3.87792298]
[1749150133132,8.133,2578.8,2578.7,3.87792298]
[1749150133458,0.7988,2579.1,2578.6,3.8780312]
[1749150133634,1.7,2579.2,2579.1,3.8772325]
[1749150133963,8.132,2579.2,2579.1,3.8772325]
[1749150134653,0.7908,2579.6,2579.1,16.0]
[1749150134856,6.432,2579.5,2579.2,3.87711187]
[1749150135029,6.432,2579.5,2579.1,16.0]
[1749150135030,6.432,2579.5,2579.4,3.87687059]
[1749150135656,6.432,2579.5,2579.1,16.0]
[1749150135855,0.7908,2579.6,2579.1,16.0]
[1749150136026,6.432,2579.4,2579.1,16.0]
[1749150136233,6.432,2579.4,2579.1,18.02735041]
[1749150136429,6.432,2579.4,2579.3,3.87702089]
[1749150137658,0.7908,2579.6,2579.5,3.87672029]
[1749150137830,7.2228,2579.6,2579.5,3.87672029]
[1749150138018,8.377,2579.7,2579.6,3.87657001]
[1749150138217,14.809,2579.7,2579.5,3.87659663]
[1749150138643,14.809,2579.7,2579.4,3.87679013]
[1749150139052,14.809,2579.7,2579.5,3.87669538]
[1749150139366,14.809,2579.7,2579.3,3.87701061]
[1749150139548,16.92755778,2579.7,2579.3,3.87701061]
[1749150140087,16.92755778,2579.7,2579.5,3.87671736]
[1749150140673,16.92755778,2579.7,2579.4,3.87680134]
[1749150140875,16.92755778,2579.7,2579.3,3.8769426]
[1749150141077,6.431,2579.6,2579.5,3.87660135]
[1749150141277,8.37168578,2579.6,2578.9,0.39588634]
[1749150141506,6.431,2579.6,2579.1,16.0]
[1749150141790,6.431,2579.6,2579.5,3.87672029]
[1749150142550,6.431,2579.6,2579.4,3.87681085]
[1749150142982,8.377,2579.7,2579.5,3.87671325]
[1749150143185,8.131,2579.6,2579.5,3.87671325]
[1749150143579,8.131,2579.6,2579.4,3.87685487]
[1749150143776,8.131,2579.6,2579.5,3.87672029]
[1749150145165,8.131,2579.6,2579.1,16.0]
[1749150145373,8.131,2579.6,2579.3,3.87691299]
[1749150145575,3.87692701,2579.4,2578.7,0.39531961]
[1749150145783,0.777,2579.0,2578.6,3.87800801]
[1749150145984,8.131,2578.9,2578.5,3.87810964]
[1749150146163,8.131,2578.9,2578.6,16.0]
[1749150146571,0.7533,2578.8,2578.5,3.87821682]
[1749150146779,0.7533,2578.8,2578.2,3.87861136]
[1749150146994,0.7533,2578.8,2578.4,3.87830318]
[1749150148293,4.63112172,2578.8,2578.3,19.8784483]
[1749150148496,3.87793272,2578.7,2578.3,19.8784483]
[1749150148696,10.5439724,2578.7,2577.6,0.38545366]
[1749150148997,10.5439724,2578.7,2577.3,1.7]
[1749150148998,3.87807337,2578.6,2578.1,3.87868544]
[1749150149203,6.431,2578.5,2578.1,16.0]
[1749150149364,1.03090734,2578.4,2578.1,19.87878823]
[1749150149905,6.431,2578.5,2578.2,3.87867029]
[1749150150102,0.807,2578.2,2577.4,1.09405014]
[1749150150404,6.432,2578.1,2577.9,3.87905606]
[1749150150583,6.432,2578.1,2577.9,3.8791215]
[1749150150786,6.432,2578.1,2577.8,3.87925744]
[1749150150994,6.432,2578.1,2577.9,3.87903145]
[1749150151190,6.432,2578.1,2577.8,3.87914085]
[1749150151500,6.432,2578.1,2577.8,3.8792024]
[1749150151690,6.432,2578.1,2577.9,3.87911739]
[1749150152409,6.432,2578.1,2577.8,3.87919831]
[1749150152908,6.432,2578.1,2577.9,3.87912115]
[1749150153201,0.807,2578.2,2577.9,3.87912115]
[1749150153401,6.433,2578.0,2577.9,3.87912115]
[1749150154763,1.7,2578.6,2578.3,3.87841097]
[1749150154964,1.7,2578.6,2578.5,3.87819701]
[1749150155164,1.7,2578.6,2578.1,3.87867757]
[1749150155165,12.132,2578.6,2578.1,3.87867757]
[1749150155370,12.132,2578.6,2578.2,3.87860497]
[1749150155569,14.20224865,2578.6,2578.2,3.87860497]
[1749150155799,14.20224865,2578.6,2578.3,3.87850291]
[1749150156107,10.20224865,2578.6,2578.3,3.87850291]
[1749150157006,10.20224865,2578.6,2577.6,16.0]
[1749150157174,0.8102,2578.5,2577.9,3.87903579]
[1749150157675,4.68845756,2578.5,2578.0,3.87897595]
[1749150158076,4.68850505,2578.5,2578.0,3.87896175]
[1749150158271,3.87849369,2578.4,2578.0,3.87895168]
[1749150158476,0.46886937,2578.3,2577.9,19.87905882]
[1749150158792,0.8252,2578.1,2577.4,0.58064951]
[1749150158972,0.8252,2578.1,2577.9,3.87905363]
[1749150159910,0.8252,2578.1,2577.7,3.87942739]
[1749150160407,4.70407546,2578.1,2577.6,3.87952463]
[1749150160607,2.81370755,2578.0,2577.9,3.87912642]
[1749150160808,1.7,2578.0,2577.9,3.87912642]
[1749150160990,1.7,2578.0,2577.8,3.8792496]
[1749150160991,1.7,2578.0,2577.7,3.87933866]
[1749150161175,1.7,2578.0,2577.8,3.87927145]
[1749150161376,1.7,2578.0,2577.6,3.87957482]
[1749150161377,1.7,2578.0,2577.6,3.87956757]
[1749150161608,0.25252,2577.9,2577.6,3.87956757]
[1749150161812,6.433,2577.8,2577.6,3.87956757]
[1749150162494,6.433,2577.8,2577.6,16.0]
[1749150162692,6.433,2577.8,2577.1,0.02]
[1749150162693,0.7608,2577.7,2577.4,3.87981239]
[1749150163176,0.7608,2577.7,2577.5,3.87968408]
[1749150163677,1.48018,2577.7,2577.5,3.8797249]
[1749150163872,1.48018,2577.7,2577.4,3.8797598]
[1749150164121,1.48018,2577.7,2577.4,3.87973464]
[1749150164323,1.48018,2577.7,2577.1,0.40632888]
[1749150164677,1.48018,2577.7,2577.5,3.87966504]
[1749150164906,0.791318,2577.6,2577.5,3.87966504]
[1749150165534,0.7608,2577.7,2577.6,3.8795779]
[1749150165729,8.133,2577.6,2577.4,3.87981658]
[1749150165880,8.133,2577.6,2577.3,3.87997047]
[1749150166230,8.133,2577.6,2577.4,3.87985449]
[1749150166533,8.133,2577.6,2577.5,3.87972841]
[1749150169036,8.133,2577.6,2577.1,0.40632888]
[1749150169342,8.133,2577.6,2577.4,3.87985583]
[1749150169484,9.41030983,2577.6,2577.4,3.87985583]
[1749150169687,9.41030983,2577.6,2577.5,3.87972841]
[1749150170343,9.41030983,2577.6,2577.4,3.87980233]
[1749150172133,9.41030983,2577.6,2577.1,0.40632888]
[1749150172434,13.28997681,2577.6,2577.2,3.880168]
[1749150172588,1.40507768,2577.5,2577.2,3.880168]
[1749150174083,1.40507768,2577.5,2577.3,3.87998324]
[1749150174697,1.7,2577.6,2577.4,3.87987324]
[1749150174921,6.434,2577.5,2577.3,3.879937]
[1749150175297,6.434,2577.5,2577.4,3.87987894]
[1749150175911,1.7,2577.6,2577.4,3.87987894]
[1749150176229,6.434,2577.5,2577.4,3.87987894]
[1749150176594,6.434,2577.5,2577.3,3.87992278]
[1749150176849,6.434,2577.5,2577.4,3.87987894]
[1749150177721,1.7,2577.6,2577.5,3.87972841]
[1749150177952,8.134,2577.6,2577.5,3.87972841]
[1749150178608,8.134,2577.6,2577.3,3.87995727]
[1749150178995,8.134,2577.6,2577.5,3.87972841]
[1749150179438,8.134,2577.6,2577.4,3.87979915]
[1749150179645,8.134,2577.6,2577.4,3.87983383]
[1749150179856,1.20133438,2577.6,2577.1,0.40632888]
[1749150180001,8.135,2577.5,2577.1,0.40632888]
[1749150180200,1.701,2577.5,2577.4,3.87987894]
[1749150180438,8.135,2577.5,2577.4,3.87987894]
[1749150180633,1.701,2577.7,2577.6,3.8795779]
[1749150180808,8.135,2577.7,2577.6,3.8795779]
[1749150181199,1.701,2577.7,2577.6,3.8795779]
[1749150181405,8.135,2577.7,2577.6,3.8795779]
[1749150181727,8.135,2577.7,2577.5,3.87967054]
[1749150182324,0.7907,2577.6,2577.1,16.40632888]
[1749150182524,4.67035043,2577.6,2577.1,3.900247]
[1749150182736,4.67035189,2577.6,2577.2,3.88017483]
[1749150182927,4.67035189,2577.6,2577.2,19.88017483]
[1749150183240,4.67035189,2577.6,2577.1,3.90027309]
[1749150183445,4.67088004,2577.2,2577.1,0.02]
[1749150183605,7.58831983,2577.2,2577.1,0.02]
[1749150183809,7.2247,2577.2,2577.1,0.02]
[1749150184821,0.8332,2577.5,2577.2,3.88018004]
[1749150185133,1.701,2577.3,2577.2,3.88018004]
[1749150185334,0.8332,2577.5,2577.3,3.87988083]
[1749150185512,1.701,2577.7,2577.6,3.8795779]
[1749150185707,1.701,2577.8,2577.7,3.87931356]
[1749150185913,5.701,2577.8,2577.7,3.87942739]
[1749150186234,12.135,2577.8,2577.7,3.87942739]
[1749150186445,5.701,2577.8,2577.7,3.87942739]
[1749150186641,8.135,2577.8,2577.7,4.65532496]
[1749150187314,1.701,2577.8,2577.7,3.87942739]
[1749150187534,8.135,2577.8,2577.1,19.90031694]
[1749150187769,8.135,2577.8,2577.3,16.0]
[1749150187940,8.135,2577.8,2577.7,3.87942739]
[1749150188515,8.135,2577.8,2577.6,3.87951337]
[1749150188745,8.135,2577.8,2577.7,3.87942739]
[1749150189547,8.135,2577.8,2577.5,16.0]
[1749150189726,8.135,2577.8,2577.6,3.87956313]
[1749150190057,8.135,2577.8,2577.7,3.87942739]
[1749150190347,1.701,2577.8,2577.7,3.87942739]
[1749150190522,1.701,2577.8,2577.7,6.25532703]
[1749150190716,0.36349804,2578.1,2578.0,3.87897595]
[1749150190910,6.79749804,2578.1,2578.0,19.87897595]
[1749150191620,0.36349804,2578.1,2578.0,19.87897595]
[1749150191816,6.79749804,2578.1,2578.0,19.87897595]
[1749150192151,6.79749804,2578.1,2578.0,22.17170256]
[1749150192725,6.79749804,2578.1,2577.7,16.0]
[1749150192925,6.79749804,2578.1,2577.9,3.87902018]
[1749150193148,6.79749804,2578.1,2578.0,3.87897595]
[1749150194241,6.79749804,2578.1,2577.8,3.87917287]
[1749150194551,6.79749804,2578.1,2577.3,0.55]
[1749150194747,6.79749804,2578.1,2577.7,3.87939226]
[1749150195051,6.433,2578.0,2577.8,3.87926616]
[1749150195327,6.433,2578.0,2577.9,3.87912642]
[1749150195475,6.433,2578.0,2577.2,5.58117477]
[1749150195476,6.433,2578.0,2576.9,4.2597804]
[1749150195692,0.7901,2577.9,2576.9,0.37915132]
[1749150195972,6.68956679,2577.8,2577.1,3.90028089]
[1749150196182,2.81020868,2577.8,2577.1,3.90028264]
[1749150196353,2.81020868,2577.8,2577.2,3.88010986]
[1749150196550,2.81020868,2577.8,2577.2,3.88018004]
[1749150196756,2.81020868,2577.8,2577.4,3.87985358]
[1749150196952,4.62738659,2577.7,2577.2,3.88008901]
[1749150197279,0.7479509,2577.7,2577.3,3.88002707]
[1749150197501,4.70899578,2577.6,2577.1,0.02]
[1749150197649,6.433,2577.5,2577.1,0.02]
[1749150198001,10.31277534,2577.5,2577.1,0.02]
[1749150198298,1.89460753,2577.4,2577.1,0.02]
[1749150198510,3.88003803,2577.3,2577.1,0.02]
[1749150198793,1.89460753,2577.4,2577.1,0.02]
[1749150198794,1.7,2577.2,2577.1,0.02]
[1749150199559,5.58018004,2577.2,2577.1,0.02]
[1749150200194,5.7,2577.2,2577.1,0.02]
[1749150200363,7.11564631,2577.2,2577.1,0.02]
[1749150200566,3.23546627,2577.2,2577.1,0.02]
[1749150200756,1.7,2577.2,2577.1,0.02]
[1749150201159,1.89460753,2577.4,2577.1,0.02]
[1749150201404,8.133,2577.3,2577.1,0.02]
[1749150202364,12.01305373,2577.3,2577.1,0.02]
[1749150202564,8.133,2577.3,2577.1,0.02]
[1749150203079,8.133,2577.3,2577.1,0.00816894]
[1749150203607,4.0,2577.2,2577.1,0.00816894]
[1749150203903,1.67933648,2577.2,2577.1,3.88849954]
[1749150204277,1.67933648,2577.2,2577.1,0.00816894]
[1749150205097,8.134,2577.2,2577.1,3.88849954]
[1749150205395,1.7,2577.2,2577.1,0.00816894]
[1749150205563,8.134,2577.2,2577.1,3.88849954]
[1749150205757,8.134,2577.2,2577.1,0.00816894]
[1749150206098,0.7804,2577.4,2577.1,0.00816894]
[1749150206283,1.7,2577.5,2577.4,3.87987894]
[1749150206592,8.134,2577.5,2577.4,3.87987894]
[1749150206821,8.134,2577.5,2577.4,4.65586978]
[1749150207905,1.7,2577.5,2577.4,4.65586978]
[1749150208308,8.134,2577.5,2577.4,4.65586978]
[1749150208593,8.134,2577.5,2577.4,3.87987894]
[1749150210363,8.134,2577.5,2577.1,0.00816894]
[1749150210526,8.134,2577.5,2577.4,3.87987894]
[1749150210673,8.134,2577.5,2577.2,16.0]
[1749150211166,8.134,2577.5,2577.3,3.87995881]
[1749150211378,8.134,2577.5,2577.4,3.87987894]
[1749150211577,8.134,2577.5,2577.3,3.87995672]
[1749150211801,0.8192,2577.4,2577.1,0.00816894]
[1749150212417,0.8192,2577.4,2577.1,3.88841136]
[1749150212771,0.8192,2577.4,2577.2,3.88017009]
[1749150212973,0.8192,2577.4,2577.3,3.88002948]
[1749150213286,7.2522,2577.4,2577.2,3.88008952]
[1749150213476,8.14742,2577.4,2577.2,3.88008952]
[1749150213929,8.14742,2577.4,2577.2,3.88018004]
[1749150214126,8.14742,2577.4,2577.3,3.88002948]
[1749150214480,8.14742,2577.4,2577.2,3.88015724]
[1749150214680,8.14742,2577.4,2577.1,3.88842992]
[1749150214975,7.2522,2577.4,2577.1,0.00816894]
[1749150215192,4.68808004,2577.2,2577.1,0.00816894]
[1749150215401,0.8079,2577.2,2577.1,0.00816894]
[1749150215930,4.68808004,2577.2,2577.1,0.00816894]
[1749150216930,8.68808004,2577.2,2577.1,0.00816894]
[1749150217330,11.56549069,2577.2,2577.1,0.00816894]
[1749150220082,28.11549069,2577.2,2576.1,0.02]
[1749150220296,0.7721,2576.3,2576.1,0.02]
[1749150220525,8.134,2576.2,2576.1,0.02]
[1749150220731,12.0156862,2576.2,2576.1,0.02]
[1749150220882,13.29446482,2576.2,2576.1,0.02]
[1749150221717,14.06656482,2576.2,2576.1,0.02]
[1749150221925,3.88226355,2575.9,2575.1,0.02]
[1749150222104,3.88226355,2575.9,2575.2,3.88308061]
[1749150222105,11.09739651,2575.8,2575.2,3.88308061]
[1749150222731,3.88256891,2575.7,2575.1,0.02]
[1749150222885,3.05664103,2575.6,2575.1,0.02]
[1749150223216,3.05664103,2575.6,2575.1,3.90331804]
[1749150223384,0.7645,2575.5,2575.1,0.02]
[1749150223587,0.7645,2575.5,2575.1,3.90332154]
[1749150223785,0.7645,2575.5,2575.1,0.02]
[1749150224085,0.77038345,2575.4,2575.1,0.02]
[1749150224285,6.441,2575.3,2575.1,0.02]
[1749150224488,6.441,2575.3,2575.1,3.90333768]
[1749150224940,6.441,2575.3,2575.2,3.88319353]
[1749150225789,6.441,2575.3,2575.1,3.90326362]
[1749150226035,6.441,2575.3,2575.1,0.02]
[1749150226236,7.16155,2575.3,2575.1,0.02]
[1749150226451,7.16155,2575.3,2575.2,3.88319353]
[1749150227308,3.95474219,2575.4,2575.3,3.88304275]
[1749150227546,10.39774219,2575.4,2575.3,3.88304275]
[1749150227861,2.25174219,2575.4,2575.3,20.43304275]
[1749150228007,1.703,2576.3,2576.2,3.8816862]
[1749150228469,8.153,2576.3,2576.2,3.8816862]
[1749150231116,1.703,2576.3,2576.2,3.8816862]
[1749150231319,8.148,2576.3,2576.2,3.8816862]
[1749150235148,1.703,2576.7,2576.6,3.88108359]
[1749150235313,8.144,2576.7,2576.6,3.88108359]
[1749150235510,8.144,2576.7,2576.5,3.88119542]
[1749150235741,8.9584,2576.7,2576.5,3.88119542]
[1749150235911,8.9584,2576.7,2576.2,3.8816862]
[1749150236114,8.144,2576.7,2576.3,3.88140328]
[1749150236334,8.144,2576.7,2576.5,3.88121841]
[1749150236748,8.144,2576.7,2576.4,3.88129854]
[1749150236919,8.144,2576.7,2576.4,3.88128775]
[1749150237264,0.7516,2576.6,2576.3,3.88146607]
[1749150237474,0.88956,2576.5,2576.3,3.88146607]
[1749150238557,0.88956,2576.5,2575.7,16.0]
[1749150238854,0.88956,2576.5,2576.3,3.88152602]
[1749150239159,4.0,2576.4,2575.7,19.88241582]
[1749150239357,4.0,2576.4,2575.9,16.0]
[1749150239656,4.0,2576.4,2575.6,0.0282]
[1749150239657,4.95222448,2576.4,2575.6,0.0282]
[1749150240155,4.95222448,2576.4,2576.1,3.88176768]
[1749150240354,4.95222448,2576.4,2576.2,3.88154733]
[1749150240563,4.95222448,2576.4,2576.2,3.88156537]
[1749150240778,4.95222448,2576.4,2576.3,3.88153553]
[1749150241157,4.95222448,2576.4,2576.2,3.88159909]
[1749150241478,0.58417845,2576.3,2576.2,3.88159909]
[1749150241945,0.88956,2576.5,2576.2,3.88162441]
[1749150242258,4.77086672,2576.5,2576.0,3.88190029]
[1749150242564,0.7521,2576.1,2575.2,0.5382]
[1749150242866,0.7521,2575.8,2575.4,3.88274876]
[1749150243182,0.7521,2575.8,2575.7,3.88243972]
[1749150243345,8.8911,2575.8,2575.6,3.88251187]
[1749150243744,8.8911,2575.8,2575.5,3.88266051]
[1749150244088,4.77164086,2575.7,2575.1,0.02]
[1749150244254,0.88911,2575.7,2575.1,0.02]
[1749150244425,0.7941,2575.6,2575.1,0.02]
[1749150244630,0.7941,2575.6,2575.2,3.88312026]
[1749150245131,4.67669943,2575.6,2575.1,19.90327191]
[1749150245341,0.55658094,2575.5,2575.1,16.02]
[1749150245628,0.7941,2575.6,2575.2,3.88304321]
[1749150245963,0.7941,2575.6,2575.5,3.88274121]
[1749150246169,8.141,2575.6,2575.5,3.88274121]
[1749150246335,8.142,2575.6,2575.5,3.88274121]
[1749150246896,8.142,2575.6,2575.3,3.88302489]
[1749150247173,12.142,2575.6,2575.5,3.88274121]
[1749150247881,12.143,2575.6,2575.5,3.88274121]
[1749150248029,8.143,2575.6,2575.5,3.88274121]
[1749150248475,8.143,2575.6,2575.1,0.02]
[1749150248630,0.8115,2575.5,2575.3,3.88299979]
[1749150248826,0.8115,2575.5,2575.3,3.88300271]
[1749150249025,0.8115,2575.5,2575.4,3.88289197]
[1749150249229,8.9573,2575.6,2575.5,3.88274121]
[1749150249467,12.9573,2575.6,2575.4,3.88281108]
[1749150250267,12.9573,2575.6,2575.3,3.88299436]
[1749150250633,12.9573,2575.6,2575.4,3.88287076]
[1749150251971,12.9573,2575.6,2575.3,3.88296268]
[1749150252807,5.703,2575.6,2575.1,16.02]
[1749150252956,4.0,2575.6,2575.5,3.88274121]
[1749150253155,8.14,2575.6,2575.5,3.88274121]
[1749150253389,1.703,2575.8,2575.7,3.88243972]
[1749150253575,1.703,2575.8,2575.2,0.0282]
[1749150253576,0.83,2575.7,2575.2,0.0282]
[1749150253762,0.83,2575.7,2575.4,3.88280915]
[1749150253968,2.11552034,2575.7,2575.3,3.88294361]
[1749150254291,2.11552034,2575.7,2575.3,3.88297713]
[1749150254472,2.11552034,2575.7,2575.5,3.88265907]
[1749150254668,4.0,2575.8,2575.6,3.88259046]
[1749150254989,5.703,2575.8,2575.7,3.88243972]
[1749150255153,4.0,2575.8,2575.7,3.88243972]
[1749150255357,12.155,2575.8,2575.7,3.88243972]
[1749150255578,5.707,2575.8,2575.7,3.88243972]
[1749150255783,1.707,2575.8,2575.7,4.66176274]
[1749150256015,8.155,2575.8,2575.7,4.66176274]
[1749150256317,6.448,2575.8,2575.7,4.66176274]
[1749150256498,6.448,2575.8,2575.7,3.88243972]
[1749150257419,1.707,2576.1,2576.0,3.88198757]
[1749150257578,1.707,2576.1,2575.9,3.88211016]
[1749150257579,8.154,2576.1,2575.9,3.88206172]
[1749150257783,8.154,2576.1,2575.6,16.0]
[1749150257980,1.707,2576.1,2575.7,1.99108022]
[1749150258185,6.445,2576.0,2575.7,5.87345932]
[1749150258487,6.445,2576.0,2575.8,3.88223284]
[1749150258896,6.445,2576.0,2575.7,3.88233319]
[1749150259117,6.445,2576.0,2575.6,19.88248953]
[1749150259318,6.445,2576.0,2575.6,16.0]
[1749150259520,6.445,2576.0,2575.6,19.88252193]
[1749150259714,0.8127,2575.9,2575.6,19.88251376]
[1749150259910,0.8127,2575.9,2575.7,3.88239305]
[1749150260724,1.707,2576.1,2576.0,3.88198757]
[1749150260936,4.0,2576.1,2576.0,19.88198757]
[1749150261304,4.0,2576.1,2576.0,20.43198757]
[1749150261305,10.45,2576.1,2576.0,20.43198757]
[1749150261822,6.45,2576.1,2576.0,19.88198757]
[1749150263444,6.45,2576.1,2576.0,3.88198757]
[1749150264335,1.707,2576.3,2576.2,3.8816862]
[1749150264629,8.158,2576.3,2576.2,3.8816862]
[1749150264792,8.158,2576.3,2575.8,0.0282]
[1749150264996,8.158,2576.3,2576.0,3.8819175]
[1749150265303,9.361932,2576.3,2576.1,3.88177103]
[1749150265504,9.361932,2576.3,2575.9,3.88208343]
[1749150265715,9.361932,2576.3,2576.1,3.88182712]
[1749150265920,0.8151,2576.2,2576.1,3.88182712]
[1749150266230,0.8151,2576.2,2575.9,3.88211009]
[1749150266596,2.22094704,2576.2,2575.9,3.88211009]
[1749150266824,0.8151,2576.2,2575.6,19.88256365]
[1749150267134,0.8151,2576.2,2576.0,3.88190227]
[1749150267795,0.8151,2576.2,2576.1,3.88183688]
[1749150268325,0.8151,2576.2,2576.0,3.88196525]
[1749150268548,8.158,2576.3,2576.1,3.88183688]